fUSD/lending_fUSD_20240501
["ID","MTS","AMOUNT","RATE_DAILY","PERIOD"]
[325221593,1714594381310,466.8427,0.00010946,2]
[325221594,1714594395415,1472.230329,0.00010936,2]
[325221596,1714594406278,953.38967146,0.00010494,2]
[325221597,1714594409008,749.63590295,0.00011,2]
[325221598,1714594480893,165.49925274,0.00010492,2]
[325221599,1714594493547,59261.3955737,0.00011,2]
[325221600,1714594758284,170.63029076,5e-05,2]
[325221601,1714594818015,152.79873084,0.0001091,2]
[325221602,1714594823422,377.14934177,0.00010909,2]
[325221603,1714594824112,155.0,0.00010909,2]
[325221604,1714594831984,361.34595815,5e-05,2]
[325221605,1714594849339,361.20371607,5e-05,2]
[325221607,1714594865350,340.42433137,5e-05,2]
[325221608,1714594941189,1295.02080291,0.00011,2]
[325221609,1714594946998,4416.37705959,0.00010999,2]
[325221610,1714594956946,1294.44165297,0.00010474,2]
[325221611,1714594966136,1528.4033,0.00010912,2]
[325221612,1714594968627,155.0,0.00011,2]
[325221613,1714595169576,200.0,0.00010726,2]
[325221614,1714595183660,55389.00653629,0.00011,2]
[325221615,1714595190481,1374.34488026,0.00011,2]
[325221616,1714595202534,20176.31019024,0.00011,2]
[325221617,1714595224508,5237.81442718,0.00011,2]
[325221618,1714595314467,214.53180043,0.00010945,2]
[325221626,1714595432093,-684.71861083,0.00011018,2]
[325221627,1714595432104,-755.28152917,0.00011019,2]
[325221628,1714595432117,-1198.87321062,0.00011019,2]
[325221629,1714595432126,-1304.0,0.00011021,2]
[325221630,1714595432135,-317.14354643,0.00011025,2]
[325221631,1714595432145,-255.01783715,0.00011025,2]
[325221632,1714595432155,-680.97331027,0.00011025,2]
[325221633,1714595432164,-158.07288978,0.00011025,2]
[325221634,1714595432173,-150.0,0.00011025,2]
[325221635,1714595432182,-376.57827505,0.00011026,2]
[325221636,1714595432191,-155.0,0.00011026,2]
[325221637,1714595432200,-406.96843324,0.00011027,2]
[325221638,1714595432213,-264.25996,0.00011027,2]
[325221639,1714595432226,-1084.00000008,0.00011027,2]
[325221640,1714595432239,-606.90853724,0.00011027,2]
[325221641,1714595432268,-7474.85110466,0.00011027,2]
[325221642,1714595432277,-3585.05138794,0.00011036,2]
[325221643,1714595432286,-268.80011272,0.0001104,2]
[325221644,1714595432295,-383.59,0.0001104,2]
[325221645,1714595432305,-155.0,0.00011046,2]
[325221646,1714595432314,-155.0,0.00011046,2]
[325221647,1714595432323,-265.59428168,0.00011046,2]
[325221648,1714595432333,-968.0068632,0.00011046,2]
[325221649,1714595432342,-200.3869162,0.00011046,2]
[325221650,1714595432351,-332.99274862,0.00011046,2]
[325221651,1714595432360,-192.83099194,0.00011046,2]
[325221652,1714595432369,-1061.20461407,0.00011046,2]
[325221653,1714595432379,-359.64228895,0.00011046,2]
[325221654,1714595432389,-781.6572709,0.00011046,2]
[325221655,1714595432398,-207.95800123,0.00011046,2]
[325221656,1714595432407,-157.31721309,0.00011046,2]
[325221657,1714595432416,-191.6052752,0.00011046,2]
[325221658,1714595432425,-2216.45947127,0.00011046,2]
[325221659,1714595432435,-404.91364498,0.00011046,2]
[325221660,1714595432443,-363.314155,0.00011046,2]
[325221661,1714595432453,-365.10629022,0.00011046,2]
[325221662,1714595432462,-162.12691486,0.00011046,2]
[325221664,1714595432471,-370.08357737,0.00011046,2]
[325221666,1714595432480,-209.50067606,0.00011046,2]
[325221668,1714595432490,-167.40108611,0.00011046,2]
[325221670,1714595432503,-259.05475022,0.00011046,2]
[325221672,1714595432513,-182.28373924,0.00011046,2]
[325221674,1714595432521,-155.0,0.00011046,2]
[325221676,1714595432530,-155.2737892,0.00011046,2]
[325221678,1714595432539,-3414.70545517,0.00011046,2]
[325221680,1714595432547,-2356.43931281,0.00011046,2]
[325221682,1714595432556,-2373.58935096,0.00011046,2]
[325221684,1714595432565,-216.13758338,0.00011046,2]
[325221686,1714595432575,-285.77156604,0.00011046,2]
[325221688,1714595432583,-298.50232026,0.00011046,2]
[325221690,1714595432592,-1000.0,0.00011046,2]
[325221692,1714595432602,-174.29796734,0.00011047,2]
[325221694,1714595432611,-1995.6221796,0.00011047,2]
[325221696,1714595432620,-499.99,0.00011049,2]
[325221698,1714595432629,-14418.4979,0.000118,2]
[325221700,1714595432638,-1859.61,0.00011926,2]
[325221702,1714595432650,-2497.0,0.00011934,2]
[325221704,1714595432661,-5000.0,0.00012,2]
[325221706,1714595432670,-7214.2758574,0.00012,2]
[325221708,1714595432678,-409.29540933,0.00012,2]
[325221710,1714595432688,-304.56,0.00012054,2]
[325221712,1714595432698,-250.0,0.00012073,2]
[325221714,1714595432707,-1660.99,0.00012092,2]
[325221716,1714595432715,-1500.0,0.00012121,2]
[325221718,1714595432724,-153.43,0.00012126,2]
[325221743,1714595432947,-241.51,0.00012164,2]
[325221745,1714595432956,-1831.97,0.00012192,2]
[325221746,1714595432966,-651.79,0.00012209,2]
[325221748,1714595432976,-153.43,0.00012216,2]
[325221749,1714595432986,-2000.0,0.00012218,3]
[325221750,1714595432996,-250.0,0.00012257,2]
[325221751,1714595433005,-200.0,0.00012257,2]
[325221752,1714595433015,-240.26,0.00012267,2]
[325221753,1714595433025,-750.0,0.00012285,2]
[325221754,1714595433034,-5931.72,0.00012299,2]
[325221755,1714595433044,-283.9183,0.000123,2]
[325221756,1714595433053,-153.43,0.00012307,2]
[325221757,1714595433062,-200.0,0.00012327,2]
[325221758,1714595433072,-153.43,0.00012397,2]
[325221759,1714595433081,-12616.9131787,0.000124,2]
[325221760,1714595433091,-153.43,0.00012487,2]
[325221761,1714595433100,-251.716816,0.000125,2]
[325221762,1714595433109,-400.0,0.00012527,2]
[325221763,1714595433119,-153.43,0.00012577,2]
[325221764,1714595433128,-153.43,0.00012668,2]
[325221765,1714595433137,-155.0,0.000127,2]
[325221766,1714595433146,-153.43,0.00012758,2]
[325221768,1714595433155,-181.67008199,0.00012896,2]
[325221770,1714595433165,-408.57453561,0.00012896,2]
[325221772,1714595433174,-428.17997283,0.00012896,2]
[325221774,1714595433184,-189.0892016,0.00012897,2]
[325221776,1714595433193,-161.28050548,0.00012897,2]
[325221777,1714595433202,-11419.27646872,0.00012897,2]
[325221779,1714595433212,-233.06329822,0.00012897,2]
[325221780,1714595433222,-859.11688349,0.00012897,2]
[325221781,1714595433232,-641.61516885,0.00012898,2]
[325221782,1714595433241,-323.99205487,0.00012898,2]
[325221783,1714595433256,-218.42683294,0.00012898,2]
[325221784,1714595433265,-343.49111768,0.00012898,2]
[325221785,1714595433274,-155.18499556,0.00012898,2]
[325221786,1714595433283,-224.11246066,0.00012898,2]
[325221787,1714595433293,-4723.24647354,0.00012898,2]
[325221788,1714595433301,-155.0,0.00012899,2]
[325221789,1714595433311,-710.01341004,0.00012899,2]
[325221790,1714595433320,-357.08497155,0.00012899,2]
[325221791,1714595433329,-158.19515389,0.00012899,2]
[325221792,1714595433339,-5548.56882649,0.00012899,2]
[325221793,1714595433349,-159.31200041,0.00012899,2]
[325221794,1714595433358,-165.37,0.00012923,2]
[325221795,1714595433367,-3365.0344,0.00012942,2]
[325221796,1714595433377,-1748.77005859,0.00013,2]
[325221797,1714595433386,-19124.91963819,0.00013042,2]
[325221798,1714595433400,-654.28007,0.00013042,2]
[325221799,1714595433412,-790.56029181,0.00013042,2]
[325221800,1714595433422,-167.68,0.00013385,2]
[325221801,1714595433431,-457.5423659,0.00013425,2]
[325221802,1714595433443,-728.2398942,0.00013425,2]
[325221803,1714595433456,-442.5177399,0.00013425,2]
[325221804,1714595433466,-200.0,0.00013699,2]
[325221805,1714595433475,-1000.0,0.00013699,2]
[325221806,1714595433484,-500.0,0.00013699,2]
[325221807,1714595433493,-2751.0,0.00013699,2]
[325221808,1714595433509,-1000.0,0.00013817,2]
[325221809,1714595433519,-214.23880024,0.00014,2]
[325221810,1714595433529,-400.0,0.00014093,2]
[325221811,1714595433538,-431.1,0.00014648,3]
[325221812,1714595433547,-3885.8076,0.000149,2]
[325221813,1714595433556,-1510.0,0.00015,2]
[325221814,1714595433566,-155.0,0.00015,2]
[325221815,1714595433576,-617.71050029,0.00015,2]
[325221816,1714595433585,-4212.33887019,0.00015,2]
[325221817,1714595433594,-152.89,0.00015068,2]
[325221818,1714595433603,-1000.0,0.00015251,2]
[325221819,1714595433614,-2500.0,0.00015251,2]
[325221820,1714595433623,-29017.2386,0.00015351,2]
[325221821,1714595433632,-155.0,0.000155,2]
[325221822,1714595433643,-1854.889,0.0001551,2]
[325221823,1714595433655,-1555.195,0.0001551,2]
[325221824,1714595433665,-1076.482,0.0001551,2]
[325221825,1714595433674,-4586.797,0.0001551,2]
[325221826,1714595433683,-5899.0,0.0001551,2]
[325221827,1714595433695,-236.113,0.0001551,2]
[325221828,1714595433706,-2292.0,0.0001551,2]
[325221829,1714595433716,-31467.871,0.0001551,2]
[325221830,1714595433726,-1256.0,0.0001551,2]
[325221831,1714595433736,-1227.0,0.0001551,2]
[325221832,1714595433748,-1000.0,0.00015544,2]
[325221833,1714595433757,-10000.0,0.0001564,2]
[325221834,1714595433766,-400.0,0.00015659,2]
[325221835,1714595433775,-167.0,0.00015831,2]
[325221836,1714595433785,-431.1,0.00016042,3]
[325221837,1714595433794,-1959.8,0.0001611,15]
[325221838,1714595433803,-500.0,0.00016201,2]
[325221839,1714595433812,-500.0,0.0001621,2]
[325221840,1714595433822,-500.0,0.00016218,2]
[325221841,1714595433831,-500.0,0.00016227,2]
[325221842,1714595433840,-500.0,0.00016236,2]
[325221843,1714595433849,-500.0,0.00016245,2]
[325221844,1714595433859,-500.0,0.00016254,2]
[325221845,1714595433868,-500.0,0.00016262,2]
[325221846,1714595433877,-500.0,0.00016271,2]
[325221847,1714595433886,-500.0,0.0001628,2]
[325221848,1714595433896,-500.0,0.00016289,2]
[325221849,1714595433905,-500.0,0.00016298,2]
[325221850,1714595433914,-500.0,0.00016306,2]
[325221851,1714595433924,-500.0,0.00016315,2]
[325221852,1714595433933,-500.0,0.00016324,2]
[325221853,1714595433943,-500.0,0.00016333,2]
[325221854,1714595433952,-500.0,0.00016342,2]
[325221855,1714595433962,-500.0,0.0001635,2]
[325221856,1714595433972,-167.0,0.00016354,2]
[325221857,1714595433984,-500.0,0.00016359,2]
[325221858,1714595433993,-500.0,0.00016368,2]
[325221859,1714595434007,-500.0,0.00016377,2]
[325221860,1714595434016,-500.0,0.00016386,2]
[325221861,1714595434025,-281.21,0.00016389,2]
[325221862,1714595434034,-500.0,0.00016394,2]
[325221863,1714595434044,-1000.3768,0.00016399,2]
[325221864,1714595434053,-500.0,0.00016403,2]
[325221865,1714595434062,-500.0,0.00016412,2]
[325221866,1714595434072,-500.0,0.00016421,2]
[325221867,1714595434082,-152.89,0.00016438,2]
[325221868,1714595434092,-1224.55602433,0.000165,2]
[325221869,1714595434103,-16000.0,0.000168,2]
[325221870,1714595434113,-2100.0,0.00016826,2]
[325221871,1714595434122,-167.0,0.00016876,2]
[325221872,1714595434131,-8792.4731,0.000169,2]
[325221873,1714595434140,-179.33920662,0.00016919,2]
[325221874,1714595434150,-19590.34951232,0.00017,2]
[325221875,1714595434159,-1312.95,0.00017053,2]
[325221876,1714595434168,-973.0,0.00017058,2]
[325221877,1714595434178,-150.66768679,0.00017068,2]
[325221878,1714595434187,-400.0,0.00017225,2]
[325221879,1714595434197,-1000.0,0.00017271,2]
[325221880,1714595434206,-180.76801923,0.00017334,2]
[325221881,1714595434215,-167.0,0.00017399,2]
[325221882,1714595434225,-431.1,0.00017437,3]
[325221883,1714595434234,-194.03025096,0.00017767,2]
[325221884,1714595434243,-150.66768679,0.0001784,2]
[325221885,1714595434255,-281.21,0.0001787,2]
[325221886,1714595434265,-160.0,0.0001788,2]
[325221887,1714595434275,-5602.72190671,0.0001788,2]
[325221888,1714595434284,-5602.72190669,0.0001788,2]
[325221889,1714595434293,-1638.91109486,0.0001788,2]
[325221890,1714595434303,-1638.91109478,0.0001788,2]
[325221891,1714595434312,-167.0,0.00017921,2]
[325221892,1714595434321,-150.66768679,0.00018099,2]
[325221893,1714595434331,-167.0,0.00018444,2]
[325221894,1714595434340,-5899.0,0.0001851,2]
[325221895,1714595434352,-2292.0,0.0001851,2]
[325221896,1714595434371,-200.0,0.0001855,2]
[325221897,1714595434386,-400.0,0.00018791,2]
[325221898,1714595434403,-431.1,0.00018831,3]
[325221899,1714595434418,-350.0,0.000189,2]
[325221900,1714595434435,-1000.0,0.00018998,2]
[325221901,1714595434454,-23369.934594,0.00019,5]
[325221902,1714595434469,-159.01883683,0.00019078,2]
[325221903,1714595434484,-153.48804451,0.00019124,2]
[325221904,1714595434504,-4000.0,0.00019178,2]
[325221905,1714595434517,-150.66768679,0.00019185,2]
[325221906,1714595434532,-258.7,0.000193,2]
[325221907,1714595434548,-352.0,0.000193,2]
[325221908,1714595434564,-1000.0,0.000193,2]
[325221909,1714595434582,-223.0,0.000193,2]
[325221910,1714595434595,-5602.72190669,0.0001948,2]
[325221911,1714595434606,-1638.91109478,0.0001948,2]
[325221912,1714595434621,-281.21,0.00019835,2]
[325221913,1714595434638,-500.0,0.00019845,2]
[325221914,1714595434654,-500.0,0.00019845,2]
[325221915,1714595434673,-500.0,0.00019845,2]
[325221916,1714595434684,-500.0,0.00019845,2]
[325221917,1714595434698,-500.0,0.00019845,2]
[325221918,1714595434711,-500.0,0.00019845,2]
[325221919,1714595434729,-500.0,0.00019845,2]
[325221920,1714595434748,-500.0,0.00019845,2]
[325221921,1714595434761,-500.0,0.00019845,2]
[325221922,1714595434773,-500.0,0.00019845,2]
[325221923,1714595434787,-500.0,0.00019845,2]
[325221924,1714595434799,-500.0,0.00019845,2]
[325221925,1714595434812,-500.0,0.00019845,2]
[325221926,1714595434825,-500.0,0.00019845,2]
[325221927,1714595434839,-500.0,0.00019845,2]
[325221928,1714595434851,-500.0,0.00019845,2]
[325221929,1714595434864,-500.0,0.00019845,2]
[325221930,1714595434877,-500.0,0.00019845,2]
[325221931,1714595434889,-500.0,0.00019845,2]
[325221932,1714595434902,-500.0,0.00019845,2]
[325221933,1714595434916,-500.0,0.00019845,2]
[325221934,1714595434929,-500.0,0.00019845,2]
[325221935,1714595434942,-500.0,0.00019845,2]
[325221936,1714595434955,-500.0,0.00019845,2]
[325221937,1714595434968,-500.0,0.00019845,2]
[325221938,1714595434982,-500.0,0.00019845,2]
[325221939,1714595434997,-500.0,0.00019845,2]
[325221940,1714595435010,-500.0,0.00019845,2]
[325221941,1714595435024,-500.0,0.00019845,2]
[325221942,1714595435038,-500.0,0.00019845,2]
[325221943,1714595435051,-500.0,0.00019845,2]
[325221944,1714595435065,-500.0,0.00019845,2]
[325221945,1714595435078,-500.0,0.00019845,2]
[325221946,1714595435092,-500.0,0.00019845,2]
[325221947,1714595435105,-500.0,0.00019845,2]
[325221948,1714595435119,-1959.8,0.00019846,15]
[325221949,1714595435133,-192.004216,0.00019857,2]
[325221950,1714595435147,-155.0,0.00019885,2]
[325221951,1714595435160,-1000.0,0.000199,2]
[325221952,1714595435175,-1000.0,0.00019938,2]
[325221953,1714595435188,-500.0,0.00019938,2]
[325221954,1714595435202,-200.0,0.00019938,2]
[325221955,1714595435215,-155.0,0.00019998,2]
[325221956,1714595435230,-1018.1202,0.00019998,2]
[325221957,1714595435245,-3082.06843787,0.00019999,2]
[325221958,1714595435261,-5173.86583197,0.0002,2]
[325221959,1714595435275,-1768.2555451,0.0002,2]
[325221960,1714595435288,-626.26256473,0.0002,2]
[325221961,1714595435302,-155.0,0.0002,2]
[325221962,1714595435315,-155.0,0.0002,2]
[325221963,1714595435329,-2327.64663163,0.0002,2]
[325221964,1714595435343,-186.23625891,0.0002,30]
[325221965,1714595435357,-860.17578703,0.0002,2]
[325221966,1714595435370,-6224.87563104,0.0002,2]
[325221967,1714595435383,-358.06175097,0.0002,2]
[325221968,1714595435398,-1258.79778978,0.0002,2]
[325221969,1714595435411,-281.21,0.00020076,2]
[325221970,1714595435425,-1000.0,0.00020085,2]
[325221971,1714595435438,-1040.945855,0.00020086,2]
[325221972,1714595435451,-71770.15955747,0.00020086,2]
[325221973,1714595435465,-562.92475247,0.00020086,2]
[325221974,1714595435478,-851.17076161,0.00020086,2]
[325221975,1714595435492,-868.69025251,0.00020086,2]
[325221976,1714595435509,-495.51498266,0.00020086,2]
[325221977,1714595435522,-155.0,0.00020086,2]
[325221978,1714595435536,-1989.84239238,0.00020086,2]
[325221979,1714595435549,-167.55025877,0.00020086,2]
[325221980,1714595435562,-431.1,0.00020226,3]
[325221981,1714595435575,-155.00675634,0.00020385,2]
[325221982,1714595435589,-153.48804451,0.00020479,2]
[325221983,1714595435602,-150.0,0.000205,2]
[325221984,1714595435615,-150.66768679,0.00020657,2]
[325221985,1714595435628,-1000.0,0.00020725,2]
[325221986,1714595435643,-281.21,0.0002089,2]
[325221987,1714595435658,-155.0,0.000209,2]
[325221988,1714595435672,-1594.86889968,0.000209,2]
[325221989,1714595435686,-1594.86889968,0.000209,2]
[325221990,1714595435699,-1594.86889968,0.000209,2]
[325221991,1714595435713,-1594.86889968,0.000209,2]
[325221992,1714595435729,-1594.86889968,0.000209,2]
[325221993,1714595435743,-1594.86889968,0.000209,2]
[325221994,1714595435762,-1594.86889968,0.000209,2]
[325221995,1714595435775,-1594.86889968,0.000209,2]
[325221996,1714595435788,-1594.86889968,0.000209,2]
[325221997,1714595435802,-1594.86889968,0.000209,2]
[325221998,1714595435816,-716.17723846,0.00021,2]
[325221999,1714595435829,-150.0,0.00021,2]
[325222000,1714595435843,-1594.86889968,0.00021349,2]
[325222001,1714595435856,-200.0,0.00021377,2]
[325222002,1714595435870,-1000.0,0.00021377,2]
[325222003,1714595435883,-500.0,0.00021377,2]
[325222004,1714595435897,-200.0,0.00021377,2]
[325222005,1714595435911,-163.73388052,0.00021486,2]
[325222006,1714595435925,-150.0,0.000215,3]
[325222007,1714595435939,-5898.0,0.0002151,2]
[325222008,1714595435954,-997.535,0.0002151,2]
[325222009,1714595435968,-150.66768679,0.00021596,2]
[325222010,1714595435982,-431.1,0.0002162,3]
[325222011,1714595435998,-950.0,0.00021644,2]
[325222012,1714595436014,-12965.57455281,0.000219,2]
[325222013,1714595436028,-1000.0,0.000219,2]
[325222014,1714595436041,-2000.0,0.000219,2]
[325222015,1714595436054,-414.22,0.00021916,2]
[325222016,1714595436068,-414.22,0.00021916,2]
[325222017,1714595436082,-2000.0,0.00021918,2]
[325222018,1714595436096,-250.0,0.00021918,2]
[325222019,1714595436108,-150.0,0.00022,3]
[325222020,1714595436117,-1594.86889968,0.00022188,2]
[325222021,1714595436127,-1490.0,0.00022353,2]
[325222022,1714595436136,-159.0188368,0.00022382,2]
[325222023,1714595436146,-1500.0,0.00022399,2]
[325222024,1714595436155,-150.0,0.00022469,2]
[325222025,1714595436165,-150.0,0.000225,3]
[325222026,1714595436174,-150.0,0.00022666,2]
[325222027,1714595436184,-300.0,0.00022733,2]
[325222028,1714595436194,-5602.72190669,0.0002274,2]
[325222029,1714595436203,-1638.91109478,0.0002274,2]
[325222030,1714595436213,-3000.0,0.0002277,2]
[325222031,1714595436223,-300.0,0.00022804,2]
[325222032,1714595436234,-1000.0,0.00022815,2]
[325222033,1714595436244,-500.0,0.00022815,2]
[325222034,1714595436261,-200.0,0.00022815,2]
[325222035,1714595436624,-150.0,0.00022819,2]
[325222036,1714595436663,-150.0,0.00022825,2]
[325222037,1714595436682,-300.0,0.00022835,2]
[325222038,1714595436692,-300.0,0.00022837,2]
[325222039,1714595436703,-414.22,0.00022875,2]
[325222040,1714595436714,-414.22,0.00022875,2]
[325222041,1714595436724,-414.11,0.00022875,2]
[325222042,1714595436734,-300.0,0.00022902,2]
[325222043,1714595436743,-300.0,0.00022936,2]
[325222044,1714595436759,-300.0,0.00022936,2]
[325222045,1714595436768,-300.0,0.00022937,2]
[325222046,1714595436777,-300.0,0.00022939,2]
[325222047,1714595436786,-150.0,0.00022956,2]
[325222048,1714595436795,-207.44215565,0.00022999,2]
[325222049,1714595436804,-5852.08008115,0.00022999,2]
[325222050,1714595436814,-150.0,0.00022999,2]
[325222051,1714595436824,-1157.07747634,0.00023,2]
[325222052,1714595436833,-155.0,0.00023,2]
[325222053,1714595436843,-200.0,0.00023,2]
[325222054,1714595436852,-200.0,0.00023,2]
[325222055,1714595436861,-150.0,0.00023,3]
[325222056,1714595436871,-431.1,0.00023015,3]
[325222057,1714595436880,-1594.86889968,0.00023027,2]
[325222058,1714595436890,-150.66768679,0.00023118,2]
[325222059,1714595436899,-200.0,0.0002323,2]
[325222060,1714595436908,-200.0,0.0002323,2]
[325222061,1714595436918,-3000.0,0.0002323,2]
[325222062,1714595436927,-150.66768679,0.00023374,2]
[325222063,1714595436937,-195.45718495,0.00023399,2]
[325222064,1714595436947,-3838.43714493,0.000234,2]
[325222065,1714595436956,-305.16,0.00023425,2]
[325222066,1714595436966,-200.0,0.00023462,2]
[325222067,1714595436975,-150.0,0.000235,3]
[325222068,1714595436985,-1959.8,0.00023582,15]
[325222069,1714595436994,-200.0,0.00023697,2]
[325222070,1714595437006,-155.0,0.0002375,2]
[325222071,1714595437016,-3000.0,0.0002385,2]
[325222072,1714595437026,-1594.86889968,0.00023866,2]
[325222073,1714595437035,-200.0,0.00023934,2]
[325222074,1714595437045,-204.69428143,0.0002399,2]
[325222075,1714595437055,-40896.72770514,0.00024,4]
[325222076,1714595437070,-9103.27229486,0.00024,4]
[325222077,1714595437080,-829.05758702,0.00024,2]
[325222078,1714595437090,-155.0,0.00024,2]
[325222079,1714595437099,-150.0,0.00024,4]
[325222080,1714595437108,-150.66768679,0.000241,2]
[325222081,1714595437118,-150.66768679,0.00024172,2]
[325222082,1714595437127,-150.66768679,0.00024198,2]
[325222083,1714595437136,-160.77589654,0.00024304,2]
[325222084,1714595437147,-150.66768679,0.00024311,2]
[325222085,1714595437156,-150.0,0.00024399,2]
[325222086,1714595437166,-1759.0,0.000244,2]
[325222087,1714595437175,-431.1,0.00024409,3]
[325222088,1714595437184,-3000.0,0.0002447,2]
[325222089,1714595437194,-150.0,0.000245,4]
[325222090,1714595437203,-152.18579797,0.00024504,2]
[325222091,1714595437212,-210.36911107,0.00024513,2]
[325222092,1714595437221,-1628.3,0.00024658,2]
[325222093,1714595437232,-150.66768679,0.00024692,2]
[325222094,1714595437242,-766.0,0.000247,2]
[325222095,1714595437254,-1594.86889968,0.00024705,2]
[325222096,1714595437263,-995.9453777,0.000249,2]
[325222097,1714595437272,-1443.15373314,0.000249,2]
[325222098,1714595437281,-150.33,0.0002499,2]
[325222099,1714595437290,-1227.24709092,0.00024999,10]
[325222100,1714595437300,-12126.57129764,0.00025,5]
[325222101,1714595437312,-32713.99002,0.00025,5]
[325222102,1714595437324,-5159.43868236,0.00025,5]
[325222103,1714595437334,-572.67268291,0.00025,7]
[325222104,1714595437343,-5003.38050409,0.00025,2]
[325222105,1714595437353,-904.40132654,0.00025,2]
[325222106,1714595437363,-303.93489314,0.00025,2]
[325222107,1714595437372,-2914.67190296,0.00025,30]
[325222108,1714595437383,-57004.99999999,0.00025,30]
[325222109,1714595437398,-1236.22977168,0.00025,30]
[325222110,1714595437428,-51084.28743966,0.00025,30]
[325222111,1714595437438,-2000.0,0.00025,20]
[325222112,1714595437446,-4921.41982489,0.00025,2]
[325222113,1714595437456,-1037.81428732,0.00025,7]
[325222114,1714595437465,-500.0,0.00025,2]
[325222115,1714595437474,-4245.86460958,0.00025,2]
[325222116,1714595437483,-1000.0,0.00025,2]
[325222117,1714595437492,-17991.75386871,0.00025,2]
[325222118,1714595437504,-150.0,0.00025,2]
[325222119,1714595437513,-150.0,0.00025,4]
[325222120,1714595437522,-3000.0,0.000251,2]
[325222121,1714595437531,-1212.14093622,0.00025111,10]
[325222122,1714595437541,-1383.98619087,0.00025111,10]
[325222123,1714595437550,-150.66768679,0.00025142,2]
[325222124,1714595437559,-213.0,0.00025206,2]
[325222125,1714595437569,-24876.58568874,0.00025306,7]
[325222126,1714595437580,-2779.09994212,0.00025306,7]
[325222127,1714595437594,-801.39287515,0.00025306,7]
[325222128,1714595437606,-3800.04013197,0.00025306,7]
[325222129,1714595437618,-432.39441523,0.00025306,7]
[325222130,1714595437634,-3813.17988348,0.00025306,7]
[325222131,1714595437650,-1393.02296755,0.00025306,7]
[325222132,1714595437666,-479.17421262,0.00025306,7]
[325222149,1714595440373,-542.0,0.0001551,2]
[325222150,1714595440383,-1788.4390412,0.0001564,2]
[325222151,1714595440393,-2167.08095881,0.00025306,7]
[325222152,1714595440404,-16751.50918777,0.00025306,7]
[325222153,1714595440423,-5597.06494878,0.00025306,7]
[325222154,1714595440432,-222.02545528,0.00025306,2]
[325222155,1714595440442,-50555.48886529,0.00025395,2]
[325222156,1714595440452,-150.0,0.00025399,2]
[325222157,1714595440461,-150.0,0.000254,2]
[325222158,1714595440471,-161.46228048,0.00025409,2]
[325222159,1714595440479,-150.66768679,0.00025413,2]
[325222160,1714595440488,-400.0,0.0002547,2]
[325222161,1714595440498,-1000.0,0.000255,2]
[325222162,1714595440507,-500.0,0.000255,2]
[325222163,1714595440517,-500.0,0.000255,2]
[325222164,1714595440526,-500.0,0.000255,2]
[325222165,1714595440535,-500.0,0.000255,2]
[325222166,1714595440544,-500.0,0.000255,2]
[325222167,1714595440553,-500.0,0.000255,2]
[325222168,1714595440562,-150.0,0.000255,4]
[325222169,1714595440571,-103934.98189581,0.00025513,7]
[325222170,1714595440581,-11979.22735438,0.00025513,30]
[325222171,1714595440590,-150.0,0.00025513,2]
[325222172,1714595440598,-150.0,0.00025513,2]
[325222173,1714595440607,-200.0,0.00025513,2]
[325222174,1714595440616,-21503.20292171,0.00025513,7]
[325222175,1714595440626,-211.33323388,0.00025513,5]
[325222176,1714595440635,-3000.0,0.00025513,2]
[325222177,1714595440646,-12844.13313497,0.00025513,2]